bitfinex/quotes_BTCUSD_20241119
["timestamp","ask_amount","ask_price","bid_price","bid_amount"]
[1732048902658,0.107733,92822.0,92803.0,0.10906255]
[1732048902865,0.023,92823.0,92809.0,0.064648]
[1732048903083,0.023,92820.0,92809.0,0.064648]
[1732048903338,0.023,92820.0,92809.0,0.129296]
[1732048903553,0.023,92820.0,92803.0,0.10906255]
[1732048903771,0.107738,92818.0,92805.0,0.064651]
[1732048903977,0.107735,92820.0,92807.0,0.06465]
[1732048904228,0.023,92826.0,92810.0,0.064647]
[1732048904449,0.023,92831.0,92821.0,0.06464]
[1732048904674,0.023,92831.0,92819.0,0.064641]
[1732048905116,0.130723,92831.0,92817.0,0.064642]
[1732048905341,0.107731,92824.0,92809.0,0.064648]
[1732048905567,0.107727,92828.0,92814.0,0.064645]
[1732048905797,0.023,92829.0,92814.0,0.064645]
[1732048906017,0.107727,92827.0,92814.0,0.064645]
[1732048906246,0.023,92826.0,92821.0,0.064639]
[1732048906491,0.023,92826.0,92795.0,0.074658]
[1732048906492,0.0796,92852.0,92822.0,0.10906255]
[1732048906722,0.107704,92847.0,92831.0,0.064633]
[1732048906928,0.107704,92847.0,92832.0,0.064632]
[1732048907153,0.107704,92847.0,92829.0,0.064634]
[1732048907154,0.107704,92847.0,92834.0,0.064631]
[1732048907403,0.12416096,92852.0,92829.0,0.064634]
[1732048907620,0.107706,92845.0,92832.0,0.064632]
[1732048907837,0.12416096,92852.0,92833.0,0.064631]
[1732048907838,0.107705,92846.0,92833.0,0.064631]
[1732048908050,0.107705,92846.0,92833.0,0.064632]
[1732048908257,0.107705,92846.0,92814.0,0.01]
[1732048908475,0.10906255,92845.0,92809.0,0.01]
[1732048908719,0.107718,92835.0,92823.0,0.064638]
[1732048908925,0.107719,92834.0,92820.0,0.06464]
[1732048909134,0.023,92833.0,92820.0,0.06464]
[1732048909342,0.023,92833.0,92822.0,0.064639]
[1732048909764,0.023,92833.0,92811.0,0.064647]
[1732048909994,0.107721,92833.0,92821.0,0.06464]
[1732048910201,0.023,92832.0,92821.0,0.06464]
[1732048910408,0.13072,92834.0,92822.0,0.064639]
[1732048910654,0.17534746,92834.0,92822.0,0.064639]
[1732048910910,0.13072,92834.0,92823.0,0.064639]
[1732048911137,0.107712,92840.0,92823.0,0.064639]
[1732048911364,0.21541,92846.0,92800.0,0.01]
[1732048911365,0.10773,92825.0,92800.0,0.01]
[1732048911596,0.107724,92830.0,92817.0,0.064642]
[1732048911824,0.215433,92836.0,92802.0,0.074653]
[1732048912052,0.215419,92842.0,92815.0,0.064644]
[1732048912260,0.10906255,92835.0,92807.0,0.064649]
[1732048912470,0.107732,92823.0,92809.0,0.064648]
[1732048912690,0.107732,92823.0,92811.0,0.064646]
[1732048912914,0.107732,92823.0,92809.0,0.064648]
[1732048912915,0.130733,92822.0,92809.0,0.064648]
[1732048913139,0.023,92822.0,92806.0,0.06465]
[1732048913347,0.023,92822.0,92791.0,0.01]
[1732048913348,0.023,92824.0,92788.0,0.0463]
[1732048913571,0.023,92824.0,92747.0,0.043072]
[1732048913572,0.10906255,92823.0,92791.0,0.10906255]
[1732048913979,0.023,92822.0,92802.0,0.064653]
[1732048914193,0.10906255,92821.0,92791.0,0.10906255]
[1732048914398,0.107745,92812.0,92800.0,0.064655]
[1732048914838,0.023,92813.0,92793.0,0.064659]
[1732048915049,0.023,92813.0,92799.0,0.064655]
[1732048915259,0.023,92813.0,92790.0,0.0008557]
[1732048915673,0.107745,92812.0,92801.0,0.064654]
[1732048915904,0.023,92811.0,92801.0,0.064654]
[1732048916587,0.107744,92812.0,92802.0,0.064653]
[1732048916818,0.023,92812.0,92802.0,0.064653]
[1732048917285,0.17524614,92812.0,92801.0,0.064654]
[1732048917493,0.10906255,92811.0,92790.0,0.0008557]
[1732048917703,0.18558631,92806.0,92790.0,0.0008557]
[1732048917919,0.13206255,92805.0,92790.0,0.0008557]
[1732048918141,0.023,92803.0,92790.0,0.0008557]
[1732048918359,0.107769,92791.0,92790.0,0.0008557]
[1732048918591,0.107767,92793.0,92790.0,0.0008557]
[1732048918828,0.0795,92804.0,92790.0,0.0008557]
[1732048919051,0.10906255,92803.0,92790.0,0.0008557]
[1732048919285,0.0795,92804.0,92790.0,0.0008557]
[1732048919501,0.023,92803.0,92791.0,0.064661]
[1732048919716,0.023,92803.0,92793.0,0.064659]
[1732048919926,0.023,92803.0,92790.0,0.0008557]
[1732048920403,0.023,92803.0,92797.0,0.064656]
[1732048920610,0.04418748,92804.0,92799.0,0.064655]
[1732048920857,0.0799,92817.0,92790.0,0.0008557]
[1732048921090,0.107731,92824.0,92792.0,0.06466]
[1732048921294,0.107731,92824.0,92795.0,0.064658]
[1732048921506,0.215458,92826.0,92791.0,0.0806]
[1732048921507,0.107728,92826.0,92812.0,0.064646]
[1732048921742,0.18558631,92814.0,92797.0,0.064657]
[1732048921946,0.107769,92791.0,92790.0,0.0008557]
[1732048922172,0.075,92796.0,92790.0,0.0008557]
[1732048922612,0.215531,92794.0,92790.0,0.0008557]
[1732048922815,0.075,92796.0,92790.0,0.0008557]
[1732048923058,0.023,92795.0,92790.0,0.0008557]
[1732048923275,0.107768,92792.0,92790.0,0.0008557]
[1732048923496,0.215531,92794.0,92790.0,0.0008557]
[1732048923709,0.023,92795.0,92790.0,0.0008557]
[1732048923919,0.075,92796.0,92791.0,0.06466]
[1732048924144,0.075,92808.0,92790.0,0.0008557]
[1732048924592,0.075,92808.0,92798.0,0.064656]
[1732048925004,0.365465,92823.0,92790.0,0.0008557]
[1732048925216,0.107737,92819.0,92792.0,0.12932]
[1732048925444,0.107736,92819.0,92808.0,0.064649]
[1732048925675,0.107736,92819.0,92807.0,0.064649]
[1732048925907,0.107737,92818.0,92807.0,0.064649]
[1732048926188,0.40906871,92823.0,92808.0,0.064649]
[1732048926404,0.18558631,92815.0,92797.0,0.064656]
[1732048926625,0.023,92822.0,92793.0,0.10906255]
[1732048926832,0.18558631,92816.0,92793.0,0.10906255]
[1732048927048,0.20564886,92816.0,92783.0,0.064666]
[1732048927272,0.023,92804.0,92772.0,0.00601208]
[1732048927548,0.1026,92804.0,92785.0,0.064665]
[1732048927796,0.18558631,92796.0,92787.0,0.064663]
[1732048928001,0.023,92804.0,92791.0,0.129322]
[1732048928214,0.215489,92812.0,92798.0,0.064656]
[1732048928440,0.023,92811.0,92796.0,0.064657]
[1732048928661,0.107749,92808.0,92796.0,0.064657]
[1732048928880,0.107749,92808.0,92796.0,0.059657]
[1732048929116,0.107749,92808.0,92798.0,0.064656]
[1732048929336,0.107749,92808.0,92784.0,0.064665]
[1732048929337,0.107753,92805.0,92792.0,0.05966]
[1732048929544,0.107751,92807.0,92795.0,0.064658]
[1732048929752,0.107748,92809.0,92797.0,0.064656]
[1732048929984,0.107758,92801.0,92790.0,0.0008557]
[1732048930203,0.023,92804.0,92790.0,0.0008557]
[1732048930437,0.130754,92804.0,92794.0,0.064659]
[1732048930852,0.18558631,92805.0,92790.0,0.0008557]
[1732048931074,0.03282191,92827.0,92804.0,0.064651]
[1732048931075,0.09971678,92814.0,92804.0,0.064651]
[1732048931320,0.0798,92814.0,92802.0,0.064653]
[1732048931546,0.0798,92814.0,92804.0,0.064652]
[1732048931789,0.0798,92814.0,92798.0,0.064656]
[1732048932024,0.0430423,92817.0,92793.0,0.002]
[1732048932227,0.0430423,92817.0,92790.0,0.0008557]
[1732048932228,0.023,92820.0,92811.0,0.129294]
[1732048932436,0.130734,92821.0,92810.0,0.064648]
[1732048932672,0.0664007,92821.0,92811.0,0.064647]
[1732048932884,0.0664007,92821.0,92808.0,0.064649]
[1732048932885,0.0664007,92821.0,92813.0,0.059645]
[1732048933103,0.15,92823.0,92820.0,0.06464]
[1732048933336,0.15,92823.0,92819.0,0.064641]
[1732048933581,0.15,92823.0,92820.0,0.064641]
[1732048933846,0.15,92823.0,92819.0,0.064641]
[1732048934102,0.15,92823.0,92820.0,0.064641]
[1732048934312,0.15,92823.0,92819.0,0.064641]
[1732048934519,0.15,92823.0,92815.0,0.064644]
[1732048934753,0.15,92823.0,92793.0,0.135336]
[1732048934973,0.215466,92822.0,92810.0,0.064647]
[1732048935190,0.215466,92822.0,92799.0,0.075431]
[1732048935191,0.15,92823.0,92799.0,0.01]
[1732048935394,0.15,92823.0,92822.0,0.064639]
[1732048941105,0.15,92823.0,92790.0,0.0108557]
[1732048941106,0.023,92821.0,92790.0,0.0108557]
[1732048941314,0.365464,92823.0,92812.0,0.064646]
[1732048941525,0.107734,92821.0,92814.0,0.064644]
[1732048941760,0.107736,92820.0,92812.0,0.064646]
[1732048942003,0.10906255,92819.0,92786.0,0.075442]
[1732048942238,0.10906255,92819.0,92772.0,0.29505502]
[1732048942239,0.18558631,92811.0,92796.0,0.064657]
[1732048942471,0.107756,92802.0,92796.0,0.064657]
[1732048942703,0.107757,92801.0,92794.0,0.064659]
[1732048942938,0.18558631,92811.0,92797.0,0.064656]
[1732048943160,0.107754,92804.0,92797.0,0.064656]
[1732048943410,0.107755,92803.0,92797.0,0.064656]
[1732048943633,0.18558631,92811.0,92795.0,0.075434]
[1732048943634,0.107752,92806.0,92799.0,0.064655]
[1732048943885,0.023,92807.0,92798.0,0.064656]
[1732048944113,0.107751,92806.0,92797.0,0.064657]
[1732048944336,0.04297852,92811.0,92797.0,0.064656]
[1732048944573,0.023,92810.0,92797.0,0.064656]
[1732048944790,0.107754,92804.0,92799.0,0.064655]
[1732048945003,0.023,92806.0,92797.0,0.064656]
[1732048945236,0.107756,92802.0,92796.0,0.064657]
[1732048945441,0.107759,92800.0,92790.0,0.0762937]
[1732048945890,0.023,92806.0,92790.0,0.0762937]
[1732048946114,0.107759,92800.0,92793.0,0.064659]
[1732048946352,0.10776,92799.0,92790.0,0.0762937]
[1732048946551,0.10776,92799.0,92792.0,0.06466]
[1732048946781,0.10776,92799.0,92793.0,0.064659]
[1732048947006,0.023,92808.0,92792.0,0.06466]
[1732048947007,0.107761,92798.0,92792.0,0.06466]
[1732048947242,0.023,92808.0,92790.0,0.0008557]
[1732048947452,0.0081832,92775.0,92774.0,0.002]
[1732048947666,0.0081832,92775.0,92774.0,0.17373555]
[1732048948321,0.0081832,92775.0,92772.0,0.07018608]
[1732048948562,0.0081832,92775.0,92772.0,0.00551208]
[1732048949012,0.107789,92773.0,92772.0,0.00551208]
[1732048950560,0.186989,92773.0,92772.0,0.00551208]
[1732048951071,0.215621,92755.0,92751.0,0.0004]
[1732048951263,0.107814,92752.0,92751.0,0.0004]
[1732048951474,0.23987655,92752.0,92751.0,0.0004]
[1732048952364,0.107814,92752.0,92751.0,0.0004]
[1732048953036,0.23987655,92752.0,92751.0,0.0004]
[1732048953286,0.28467657,92752.0,92751.0,0.0004]
[1732048953705,0.17561402,92752.0,92751.0,0.0004]
[1732048953936,0.15261402,92752.0,92751.0,0.0004]
[1732048954366,0.14660241,92752.0,92751.0,0.0004]
[1732048954592,0.35956496,92752.0,92751.0,0.0004]
[1732048956529,0.22750241,92752.0,92751.0,0.0004]
[1732048957188,0.12570002,92752.0,92751.0,0.0004]
[1732048957400,0.23351402,92752.0,92751.0,0.0004]
[1732048958288,0.23351402,92752.0,92751.0,0.0012562]
[1732048958515,0.04480002,92752.0,92751.0,0.0012562]
[1732048958754,0.15261402,92752.0,92751.0,0.0012562]
[1732048958977,0.107814,92752.0,92751.0,0.0012562]
[1732048959204,0.18558631,92759.0,92756.0,0.064685]
[1732048959442,0.18558631,92759.0,92751.0,0.0659452]
[1732048959443,0.18558631,92759.0,92755.0,0.064686]
[1732048959619,0.18558631,92759.0,92751.0,0.0012562]
[1732048959878,0.107814,92753.0,92751.0,0.0012562]
[1732048960300,0.215617,92757.0,92751.0,0.0012562]
[1732048960301,0.107811,92755.0,92751.0,0.0012562]
[1732048960518,0.18558631,92759.0,92751.0,0.0012562]
[1732048960724,0.107814,92752.0,92751.0,0.0012562]
[1732048960931,0.18558631,92759.0,92751.0,0.0012562]
[1732048961139,2.18558631,92759.0,92751.0,0.0012562]
[1732048961347,2.18558631,92759.0,92753.0,0.064687]
[1732048961769,0.107809,92757.0,92751.0,0.0012562]
[1732048962403,0.107812,92754.0,92751.0,0.0012562]
[1732048962835,0.215614,92758.0,92751.0,0.0012562]
[1732048962836,0.107808,92758.0,92751.0,0.0012562]
[1732048963045,0.107808,92757.0,92751.0,0.0012562]
[1732048963283,2.18558631,92759.0,92751.0,0.0012562]
[1732048963284,0.107811,92755.0,92751.0,0.0012562]
[1732048963521,2.18558631,92759.0,92751.0,0.0012562]
[1732048963873,0.107809,92757.0,92751.0,0.0012562]
[1732048964265,2.18558631,92759.0,92751.0,0.0012562]
[1732048964266,0.10781,92756.0,92751.0,0.0012562]
[1732048965064,0.215617,92757.0,92751.0,0.0012562]
[1732048965370,0.10781,92756.0,92751.0,0.0012562]
[1732048965937,0.107814,92752.0,92751.0,0.0012562]
[1732048966372,2.40119931,92759.0,92751.0,0.0012562]
[1732048966589,2.18558631,92759.0,92751.0,0.0012562]
[1732048966803,2.18558631,92759.0,92753.0,0.064687]
[1732048967268,2.18558631,92759.0,92758.0,0.064684]
[1732048967269,2.0,92759.0,92758.0,0.064684]
[1732048969622,2.0,92759.0,92751.0,0.10037218]
[1732048969827,2.0,92759.0,92758.0,0.066684]
[1732048970056,2.0,92759.0,92758.0,0.064684]
[1732048970454,2.0,92759.0,92737.0,0.0863]
[1732048970666,2.12483875,92759.0,92744.0,0.10906255]
[1732048970906,2.12483875,92759.0,92750.0,0.064689]
[1732048971087,0.107808,92758.0,92745.0,0.064693]
[1732048971292,0.107808,92758.0,92741.0,0.064696]
[1732048971293,0.107808,92758.0,92752.0,0.064688]
[1732048971505,2.12483875,92759.0,92754.0,0.064686]
[1732048971722,2.0,92759.0,92758.0,0.064684]
[1732048972199,1.911,92759.0,92758.0,0.064684]
[1732048973728,1.906,92759.0,92758.0,0.064684]
[1732048974813,1.906,92759.0,92758.0,0.066684]
[1732048975045,1.906,92759.0,92758.0,0.064684]
[1732048975470,1.906,92759.0,92758.0,0.17374655]
[1732048975682,1.906,92759.0,92758.0,0.17574655]
[1732048975894,1.906,92759.0,92758.0,0.17338794]
[1732048976336,1.906,92759.0,92758.0,0.17538794]
[1732048976751,1.906,92759.0,92758.0,0.27168794]
[1732048977425,1.906,92759.0,92758.0,0.37168794]
[1732048981155,1.798195,92759.0,92758.0,0.37168794]
[1732048981383,1.733512,92759.0,92758.0,0.37168794]
[1732048981594,1.56229,92759.0,92758.0,0.32128794]
[1732048981813,1.53579,92759.0,92758.0,0.32328794]
[1732048982458,1.53579,92759.0,92758.0,0.29828794]
[1732048982694,1.53579,92759.0,92758.0,0.30028794]
[1732048982914,1.53579,92759.0,92758.0,0.29538794]
[1732048983352,1.5375026,92759.0,92758.0,0.29538794]
[1732048987093,1.4485026,92759.0,92758.0,0.29538794]
[1732048988203,1.3406976,92759.0,92758.0,0.29338794]
[1732048988408,1.3191366,92759.0,92758.0,0.29338794]
[1732048988610,1.3191366,92759.0,92758.0,0.29538794]
[1732048988819,1.2328926,92759.0,92758.0,0.29338794]
[1732048989452,1.1250876,92759.0,92758.0,0.31838794]
[1732048989696,1.1250876,92759.0,92758.0,0.31638794]
[1732048989897,1.05142746,92759.0,92758.0,0.31638794]
[1732048990506,0.98674446,92759.0,92758.0,0.31638794]
[1732048990762,0.94362246,92759.0,92758.0,0.31638794]
[1732048990934,0.94103968,92759.0,92758.0,0.31838794]
[1732048991134,0.72624919,92759.0,92758.0,0.31838794]
[1732048991350,0.66768819,92759.0,92758.0,0.31838794]
[1732048991517,0.58144419,92759.0,92758.0,0.31838794]
[1732048991933,0.53810922,92759.0,92758.0,0.31838794]
[1732048992136,0.30601579,92759.0,92758.0,0.31638794]
[1732048992385,0.083,92805.0,92786.0,0.01]
[1732048992514,0.083,92805.0,92787.0,0.10906255]
[1732048992515,0.12483875,92804.0,92787.0,0.10906255]
[1732048992719,0.0807,92802.0,92772.0,0.053895]
[1732048992962,0.107763,92796.0,92778.0,0.053891]
[1732048993161,0.107763,92796.0,92767.0,0.01]
[1732048993162,0.0807,92795.0,92781.0,0.05389]
[1732048993540,0.0807,92795.0,92786.0,0.107773]
[1732048993541,0.107768,92792.0,92786.0,0.107773]
[1732048993748,0.0807,92795.0,92779.0,0.10906255]
[1732048993749,0.215533,92793.0,92784.0,0.053888]
[1732048993935,0.0807,92795.0,92786.0,0.053887]
[1732048994225,0.0807,92795.0,92769.0,0.002]
[1732048994226,0.079,92793.0,92767.0,0.01]
[1732048994445,0.079,92793.0,92768.0,0.11106255]
[1732048994446,0.107771,92789.0,92768.0,0.11106255]
[1732048994662,0.10777,92790.0,92785.0,0.053887]
[1732048994918,0.079,92793.0,92792.0,0.053883]
[1732048995170,0.079,92793.0,92786.0,0.053886]
[1732048995587,0.079,92793.0,92792.0,0.053883]
[1732048996643,0.079,92793.0,92790.0,0.053884]
[1732048996883,0.079,92793.0,92792.0,0.053883]
[1732048997796,0.079,92793.0,92788.0,0.053885]
[1732048998000,0.079,92793.0,92790.0,0.053884]
[1732048998215,0.079,92793.0,92785.0,0.10906255]
[1732048998408,0.079,92793.0,92792.0,0.053883]
[1732048998957,0.079,92793.0,92785.0,0.10906255]
[1732048999154,0.186766,92793.0,92786.0,0.053886]
[1732048999380,0.079,92793.0,92788.0,0.053885]
[1732048999539,0.079,92793.0,92789.0,0.053885]
[1732048999764,0.0483,92794.0,92776.0,0.053892]
[1732048999765,0.297436,92792.0,92776.0,0.053892]
[1732048999965,0.297436,92792.0,92758.0,0.0117096]
[1732048999966,0.0819,92792.0,92777.0,0.053892]
[1732049000214,0.107778,92784.0,92777.0,0.053892]
[1732049000413,0.0819,92792.0,92777.0,0.053892]
[1732049000414,0.107776,92785.0,92777.0,0.053892]
[1732049000659,0.107778,92784.0,92777.0,0.053892]
[1732049000833,0.10778,92782.0,92774.0,0.053893]
[1732049001028,0.12505538,92792.0,92775.0,0.11106255]
[1732049001327,0.12505538,92792.0,92787.0,0.053886]
[1732049001590,0.12505538,92792.0,92776.0,0.053893]
[1732049001740,0.12505538,92792.0,92777.0,0.10906255]
[1732049001941,0.12505538,92792.0,92775.0,0.053893]
[1732049002147,0.03605538,92792.0,92767.0,0.063898]
[1732049002370,0.0483,92794.0,92779.0,0.053891]
[1732049002371,0.107775,92786.0,92779.0,0.053891]
[1732049002786,0.0483,92794.0,92768.0,0.10906255]
[1732049002992,0.0483,92794.0,92758.0,0.0017096]
[1732049002993,0.23160141,92792.0,92758.0,0.0017096]
[1732049003180,0.23160141,92792.0,92767.0,0.053898]
[1732049003181,0.107788,92774.0,92767.0,0.053898]
[1732049003369,0.0462,92775.0,92774.0,0.053894]
[1732049003854,0.0462,92775.0,92772.0,0.10779]
[1732049004103,0.0462,92775.0,92764.0,0.10906255]
[1732049004303,0.0462,92775.0,92758.0,0.0017096]
[1732049004503,0.107789,92774.0,92767.0,0.053898]
[1732049004714,0.0462,92775.0,92768.0,0.053897]
[1732049004921,0.0462,92775.0,92772.0,0.10779]
[1732049005119,0.0819,92774.0,92772.0,0.10779]
[1732049005327,0.0819,92774.0,92760.0,0.053902]
[1732049005328,0.0819,92774.0,92766.0,0.053898]
[1732049005532,0.0819,92774.0,92768.0,0.053897]
[1732049005774,0.0819,92774.0,92771.0,0.053896]
[1732049005953,0.0769,92774.0,92769.0,0.053897]
[1732049006345,0.0769,92774.0,92761.0,0.10906255]
[1732049006557,0.0769,92774.0,92773.0,0.053894]
[1732049006951,0.0769,92774.0,92771.0,0.053895]
[1732049007224,0.0769,92774.0,92773.0,0.053894]
[1732049007426,0.0777548,92774.0,92773.0,0.053894]
[1732049008225,0.0777548,92774.0,92773.0,0.16295655]
[1732049008435,0.0008548,92774.0,92773.0,0.16295655]
[1732049011983,0.0008548,92774.0,92773.0,0.27495655]
[1732049012213,0.0008548,92774.0,92773.0,0.28495655]
[1732049013258,0.0008548,92774.0,92773.0,0.3292554]
[1732049013666,8e-07,92774.0,92773.0,0.4056554]
[1732049013874,8e-07,92774.0,92773.0,0.4076554]
[1732049014695,8e-07,92774.0,92773.0,0.4056554]
[1732049015017,8e-07,92774.0,92773.0,0.3517614]
[1732049015157,8e-07,92774.0,92773.0,0.4056554]
[1732049016052,8e-07,92774.0,92773.0,0.3292554]
[1732049016648,8e-07,92774.0,92773.0,0.3192554]
[1732049016870,8e-07,92774.0,92773.0,0.16295655]
[1732049017068,0.0356008,92790.0,92773.0,0.10906255]
[1732049017280,0.0356008,92790.0,92787.0,0.053886]
[1732049017489,0.0356008,92790.0,92775.0,0.053893]
[1732049017490,0.0356008,92790.0,92788.0,0.053886]
[1732049017707,0.0356008,92790.0,92786.0,0.053886]
[1732049017916,0.0356008,92790.0,92789.0,0.053885]
[1732049018361,0.238487,92813.0,92800.0,0.053879]
[1732049018618,0.107751,92807.0,92798.0,0.10776]
[1732049018862,0.215489,92812.0,92798.0,0.05388]
[1732049019064,0.107754,92804.0,92794.0,0.053882]
[1732049019231,0.023,92813.0,92789.0,0.10906255]
[1732049019567,0.023,92813.0,92797.0,0.05388]
[1732049019777,0.215491,92811.0,92797.0,0.05388]
[1732049019978,0.10775,92807.0,92798.0,0.10776]
[1732049020493,0.1246,92806.0,92798.0,0.10776]
[1732049020721,0.12424865,92806.0,92789.0,0.11106255]
[1732049020917,0.0493,92822.0,92800.0,0.053879]
[1732049021074,0.0493,92822.0,92821.0,0.053867]
[1732049021251,0.0493,92822.0,92819.0,0.053867]
[1732049021465,0.0493,92822.0,92816.0,0.053869]
[1732049021466,0.0493,92822.0,92821.0,0.053867]
[1732049024142,0.0828,92837.0,92822.0,0.053866]
[1732049024701,0.0828,92837.0,92822.0,0.16292855]
[1732049024916,0.0828,92837.0,92822.0,0.16492855]
[1732049025130,0.0483,92839.0,92822.0,0.16492855]
[1732049025340,0.0483,92839.0,92822.0,0.17492855]
[1732049026003,0.001711,92842.0,92822.0,0.21664975]
[1732049026199,0.001711,92842.0,92822.0,0.32664975]
[1732049027167,0.0017114,92847.0,92846.0,0.053852]
[1732049027168,0.000134,92847.0,92846.0,0.053852]
[1732049027388,0.000134,92847.0,92846.0,0.16291455]
[1732049028059,0.000134,92847.0,92846.0,0.16491455]
[1732049028268,0.000134,92847.0,92846.0,0.16291455]
[1732049028838,0.000134,92847.0,92846.0,0.17491455]
[1732049029067,0.000134,92847.0,92846.0,0.18491455]
[1732049029322,0.000134,92847.0,92846.0,0.2284802]
[1732049029959,0.000134,92847.0,92846.0,0.2184802]
[1732049030155,0.000134,92847.0,92846.0,0.2164802]
[1732049030284,0.000134,92847.0,92846.0,0.2184802]
[1732049031309,0.000134,92847.0,92846.0,0.17291455]
[1732049031711,0.000134,92847.0,92846.0,0.17491455]
[1732049032264,0.25880755,92883.0,92856.0,0.053846]
[1732049032265,0.215352,92871.0,92856.0,0.053846]
[1732049032474,0.215354,92870.0,92859.0,0.053844]
[1732049032691,0.10768,92868.0,92859.0,0.053844]
[1732049032862,0.000855,92883.0,92848.0,0.053851]
[1732049033064,0.10768,92868.0,92859.0,0.053844]
[1732049033268,0.21535,92872.0,92859.0,0.053844]
[1732049033269,0.107681,92867.0,92859.0,0.053844]
[1732049033453,0.215354,92870.0,92861.0,0.053843]
[1732049033661,0.000855,92883.0,92856.0,0.053846]
[1732049033977,0.107684,92865.0,92858.0,0.053845]
[1732049034571,0.21535,92872.0,92856.0,0.053846]
[1732049034780,0.107685,92863.0,92856.0,0.053846]
[1732049034984,0.102685,92863.0,92856.0,0.053846]
[1732049035181,0.215364,92866.0,92858.0,0.053845]
[1732049035182,0.0482,92864.0,92858.0,0.053845]
[1732049035402,0.107685,92863.0,92857.0,0.053845]
[1732049035677,0.155884,92864.0,92859.0,0.053844]
[1732049035881,0.155884,92864.0,92859.0,0.107688]
[1732049036084,0.0482,92864.0,92861.0,0.053843]
[1732049036297,0.0482,92864.0,92863.0,0.053842]
[1732049036500,0.0482,92864.0,92861.0,0.053843]
[1732049036710,0.189374,92873.0,92867.0,0.05384]
[1732049036952,0.0817,92873.0,92867.0,0.10768]
[1732049037161,0.107675,92872.0,92867.0,0.10768]
[1732049037596,0.0817,92873.0,92867.0,0.05384]
[1732049037817,0.189374,92873.0,92868.0,0.053839]
[1732049038257,0.0817,92873.0,92868.0,0.053839]
[1732049038708,0.0817,92873.0,92870.0,0.053838]
[1732049039128,0.0817,92873.0,92868.0,0.053839]
[1732049039363,0.0817,92873.0,92872.0,0.053837]
[1732049039834,0.0817,92873.0,92870.0,0.053838]
[1732049040051,0.0815,92880.0,92869.0,0.053839]
[1732049040258,0.0815,92893.0,92878.0,0.053834]
[1732049040481,0.0815,92893.0,92878.0,0.16289655]
[1732049043181,0.0815,92893.0,92876.0,0.053834]
[1732049043182,0.00046369,92883.0,92876.0,0.053834]
[1732049043377,0.00046369,92883.0,92870.0,0.053838]
[1732049043602,0.00046369,92883.0,92864.0,0.053841]
[1732049043805,0.00046369,92883.0,92861.0,0.053843]
[1732049043806,0.25412431,92882.0,92861.0,0.053843]
[1732049044139,0.000854,92879.0,92850.0,0.10906255]
[1732049044352,0.107675,92872.0,92865.0,0.053841]
[1732049044590,0.107675,92872.0,92850.0,0.10906255]
[1732049044591,0.107675,92872.0,92863.0,0.053842]
[1732049044799,0.107675,92872.0,92864.0,0.053841]
[1732049045438,0.215343,92875.0,92865.0,0.053841]
[1732049045647,0.21534,92876.0,92865.0,0.053841]
[1732049045883,0.107675,92872.0,92865.0,0.053841]
[1732049046527,0.000854,92879.0,92871.0,0.053838]
[1732049046741,0.000854,92879.0,92871.0,0.053837]
[1732049046949,0.000854,92879.0,92877.0,0.107668]
[1732049047200,0.041254,92882.0,92878.0,0.053834]
[1732049047416,0.041254,92882.0,92879.0,0.053833]
[1732049047626,0.041254,92882.0,92877.0,0.053834]
[1732049047831,0.041254,92882.0,92874.0,0.053835]
[1732049048043,0.148918,92882.0,92874.0,0.053835]
[1732049048756,0.041254,92882.0,92875.0,0.053835]
[1732049048967,0.148918,92882.0,92875.0,0.053835]
[1732049049409,0.148918,92882.0,92879.0,0.053833]
[1732049049410,0.041254,92882.0,92879.0,0.053833]
[1732049049626,0.00046369,92883.0,92882.0,0.053831]
[1732049052784,0.00046369,92883.0,92882.0,0.16289355]
[1732049055007,0.00046369,92883.0,92882.0,0.053831]
[1732049055220,0.00046369,92883.0,92882.0,0.18289355]
[1732049055429,0.00046369,92883.0,92882.0,0.26479355]
[1732049055645,0.00046369,92883.0,92882.0,0.17289355]
[1732049056105,0.00046369,92883.0,92882.0,0.16289355]
[1732049058084,0.00046369,92883.0,92881.0,0.053832]
[1732049058308,0.00046369,92883.0,92827.0,0.28693063]
[1732049058309,0.00046369,92883.0,92865.0,0.01]
[1732049058511,0.00046369,92883.0,92877.0,0.053834]
[1732049058726,0.00046369,92883.0,92878.0,0.053833]
[1732049059147,0.00046369,92883.0,92879.0,0.053833]
[1732049059470,0.00046369,92883.0,92881.0,0.053832]
[1732049059676,0.00046369,92883.0,92877.0,0.053834]
[1732049059932,0.00046369,92883.0,92881.0,0.053832]
[1732049060097,0.00046369,92883.0,92877.0,0.053834]
[1732049060098,0.00046369,92883.0,92879.0,0.053833]
[1732049060297,0.00046369,92883.0,92880.0,0.053832]
[1732049060730,0.00046369,92883.0,92882.0,0.053831]
[1732049062379,0.107648,92896.0,92887.0,0.053828]
[1732049062583,0.107648,92895.0,92887.0,0.053828]
[1732049062785,0.0004,92899.0,92882.0,0.01]
[1732049063386,0.107652,92892.0,92883.0,0.05383]
[1732049063584,0.0004,92899.0,92882.0,0.01]
[1732049063922,0.215289,92898.0,92882.0,0.01]
[1732049064130,0.215294,92896.0,92882.0,0.01]
[1732049064331,0.108044,92899.0,92890.0,0.053826]
[1732049064534,0.108044,92899.0,92882.0,0.01]
[1732049064535,0.0004,92899.0,92882.0,0.01]
[1732049064760,0.107645,92898.0,92888.0,0.053828]
[1732049065108,0.0004,92899.0,92885.0,0.053829]
[1732049065315,0.107648,92896.0,92888.0,0.053828]
[1732049065526,0.107648,92896.0,92882.0,0.01]
[1732049065527,0.0004,92899.0,92882.0,0.01]
[1732049065733,0.107648,92895.0,92885.0,0.053829]
[1732049065943,0.107648,92895.0,92886.0,0.053829]